[Event "Live Chess"]
[Site "Chess.com"]
[Date "2023.05.20"]
[Round "-"]
[White "guptarayan"]
[Black "NatashaRegan"]
[Result "0-1"]
[WhiteElo "541"]
[BlackElo "1875"]
[TimeControl "300"]
[EndTime "9:11:48 PDT"]
[Termination "NatashaRegan won by resignation"]

1. e4 {[%clk 0:04:59]} 1... Nf6 {[%clk 0:04:57.3]} 2. e5 {[%clk 0:04:56.9]} 2...
Nd5 {[%clk 0:04:56.3]} 3. Bc4 {[%clk 0:04:54.9]} 3... Nb6 {[%clk 0:04:54.3]} 4.
Bb3 {[%clk 0:04:51.5]} 4... d5 {[%clk 0:04:52.3]} 5. d4 {[%clk 0:04:48.5]} 5...
e6 {[%clk 0:04:49.3]} 6. f4 {[%clk 0:04:43.4]} 6... a5 {[%clk 0:04:47.4]} 7. Nf3
{[%clk 0:04:35.3]} 7... a4 {[%clk 0:04:46]} 8. Bxd5 {[%clk 0:04:22.8]} 8... Nxd5
{[%clk 0:04:44]} 9. O-O {[%clk 0:04:18.8]} 9... c5 {[%clk 0:04:39.3]} 10. c3
{[%clk 0:04:14.8]} 10... Nc6 {[%clk 0:04:37.5]} 11. Nbd2 {[%clk 0:04:08.6]}
11... Qb6 {[%clk 0:04:34.4]} 12. Ne4 {[%clk 0:04:02.2]} 12... cxd4 {[%clk
0:04:31.2]} 13. cxd4 {[%clk 0:03:52.5]} 13... Bd7 {[%clk 0:04:29.4]} 14. Re1
{[%clk 0:03:40]} 14... Nxd4 {[%clk 0:04:21.5]} 15. Be3 {[%clk 0:03:36.6]} 15...
Nxf3+ {[%clk 0:04:16.4]} 16. gxf3 {[%clk 0:03:28.8]} 16... Nxe3 {[%clk 0:04:14]}
17. Qe2 {[%clk 0:03:21.2]} 17... Nc2+ {[%clk 0:04:10.3]} 18. Qf2 {[%clk
0:03:12.5]} 18... Qxf2+ {[%clk 0:04:07.5]} 19. Kxf2 {[%clk 0:03:10.4]} 19...
Nxa1 {[%clk 0:04:05.6]} 20. Rxa1 {[%clk 0:03:08.8]} 20... Bc6 {[%clk 0:04:03.5]}
21. Nd6+ {[%clk 0:03:05.7]} 21... Bxd6 {[%clk 0:04:01.9]} 22. exd6 {[%clk
0:03:04.3]} 22... Kd7 {[%clk 0:04:01.1]} 23. Rd1 {[%clk 0:03:01.5]} 23... Ra5
{[%clk 0:03:59.8]} 24. b4 {[%clk 0:02:58.8]} 24... Rd5 {[%clk 0:03:58.4]} 25.
Rxd5 {[%clk 0:02:52.3]} 25... Bxd5 {[%clk 0:03:57.5]} 26. Ke3 {[%clk 0:02:50.1]}
26... Bxa2 {[%clk 0:03:55.5]} 0-1

[Event "Live Chess"]
[Site "Chess.com"]
[Date "2023.05.20"]
[Round "-"]
[White "JanMur7"]
[Black "TKDRyan"]
[Result "1-0"]
[WhiteElo "1949"]
[BlackElo "1163"]
[TimeControl "300"]
[EndTime "9:11:49 PDT"]
[Termination "JanMur7 won by checkmate"]

1. e4 {[%clk 0:04:57.5]} 1... c5 {[%clk 0:04:59.1]} 2. Nf3 {[%clk 0:04:55.7]}
2... d6 {[%clk 0:04:58.1]} 3. c3 {[%clk 0:04:54.9]} 3... Nc6 {[%clk 0:04:56.7]}
4. Be2 {[%clk 0:04:53.4]} 4... Nf6 {[%clk 0:04:55]} 5. d4 {[%clk 0:04:52.2]}
5... cxd4 {[%clk 0:04:53.7]} 6. cxd4 {[%clk 0:04:51.2]} 6... e6 {[%clk
0:04:51.9]} 7. Nc3 {[%clk 0:04:50]} 7... Be7 {[%clk 0:04:50.8]} 8. d5 {[%clk
0:04:49]} 8... exd5 {[%clk 0:04:49.3]} 9. exd5 {[%clk 0:04:48.2]} 9... Ne5
{[%clk 0:04:47.8]} 10. Nxe5 {[%clk 0:04:47.4]} 10... dxe5 {[%clk 0:04:47.7]} 11.
O-O {[%clk 0:04:46.5]} 11... Bb4 {[%clk 0:04:45.7]} 12. Qa4+ {[%clk 0:04:43.9]}
12... Bd7 {[%clk 0:04:40.6]} 13. Qxb4 {[%clk 0:04:42]} 13... b6 {[%clk
0:04:34.5]} 14. Nb5 {[%clk 0:04:31.7]} 14... Bxb5 {[%clk 0:04:30.4]} 15. Bxb5+
{[%clk 0:04:29.5]} 15... Nd7 {[%clk 0:04:28.3]} 16. Qd6 {[%clk 0:04:27.1]} 16...
a6 {[%clk 0:04:21.8]} 17. Bc6 {[%clk 0:04:20.8]} 17... Rc8 {[%clk 0:04:19.1]}
18. Bg5 {[%clk 0:04:15.4]} 18... f6 {[%clk 0:04:16.4]} 19. Qe6+ {[%clk
0:04:11.3]} 19... Kf8 {[%clk 0:04:08.5]} 20. Bxd7 {[%clk 0:04:09.7]} 20... Rc2
{[%clk 0:04:04.4]} 21. Qd6+ {[%clk 0:04:07.3]} 21... Kf7 {[%clk 0:04:02.3]} 22.
Be6+ {[%clk 0:04:03.2]} 22... Kg6 {[%clk 0:04:00.7]} 23. Qxd8 {[%clk 0:03:59.1]}
23... Rxd8 {[%clk 0:03:58.9]} 24. Be3 {[%clk 0:03:59]} 24... Rxb2 {[%clk
0:03:55.4]} 25. Rab1 {[%clk 0:03:55]} 25... Rxa2 {[%clk 0:03:53.3]} 26. Rb4
{[%clk 0:03:51.2]} 26... b5 {[%clk 0:03:44.3]} 27. Rg4+ {[%clk 0:03:47.8]} 27...
Kh5 {[%clk 0:03:41.4]} 28. h3 {[%clk 0:03:45.7]} 28... b4 {[%clk 0:03:37.4]} 29.
Bf7+ {[%clk 0:03:37.8]} 29... g6 {[%clk 0:03:35.6]} 30. g3 {[%clk 0:03:35]}
30... b3 {[%clk 0:03:32.3]} 31. Rh4# {[%clk 0:03:34.1]} 1-0

[Event "Live Chess"]
[Site "Chess.com"]
[Date "2023.05.20"]
[Round "-"]
[White "JoeyCage"]
[Black "Singapourfeuj"]
[Result "1-0"]
[WhiteElo "2313"]
[BlackElo "2317"]
[TimeControl "300"]
[EndTime "9:11:53 PDT"]
[Termination "JoeyCage won by checkmate"]

1. e4 {[%clk 0:04:56.7]} 1... e6 {[%clk 0:04:57.3]} 2. d4 {[%clk 0:04:55.7]}
2... d5 {[%clk 0:04:56.3]} 3. Nc3 {[%clk 0:04:55.6]} 3... Nf6 {[%clk 0:04:53.4]}
4. e5 {[%clk 0:04:54.6]} 4... Nfd7 {[%clk 0:04:51.3]} 5. Nce2 {[%clk 0:04:54.3]}
5... c5 {[%clk 0:04:49.4]} 6. c3 {[%clk 0:04:53.8]} 6... Nc6 {[%clk 0:04:48.3]}
7. Nf3 {[%clk 0:04:52.8]} 7... b5 {[%clk 0:04:47.1]} 8. Ng3 {[%clk 0:04:51.1]}
8... Rb8 {[%clk 0:04:44.9]} 9. Be3 {[%clk 0:04:49.6]} 9... a5 {[%clk 0:04:43]}
10. Be2 {[%clk 0:04:46.8]} 10... b4 {[%clk 0:04:42]} 11. O-O {[%clk 0:04:45.4]}
11... Be7 {[%clk 0:04:40.5]} 12. a3 {[%clk 0:04:40]} 12... O-O {[%clk
0:04:38.1]} 13. axb4 {[%clk 0:04:38.9]} 13... axb4 {[%clk 0:04:37]} 14. Qc2
{[%clk 0:04:37.1]} 14... h6 {[%clk 0:04:27.8]} 15. Rfb1 {[%clk 0:04:31.4]} 15...
f5 {[%clk 0:04:15.4]} 16. exf6 {[%clk 0:04:30.1]} 16... Nxf6 {[%clk 0:04:05.6]}
17. dxc5 {[%clk 0:04:26.3]} 17... e5 {[%clk 0:04:03.7]} 18. cxb4 {[%clk
0:04:14.1]} 18... d4 {[%clk 0:03:41]} 19. Bd2 {[%clk 0:04:09.8]} 19... Bg4
{[%clk 0:03:32.1]} 20. h3 {[%clk 0:04:02]} 20... Be6 {[%clk 0:03:29.1]} 21. Bc4
{[%clk 0:03:58.2]} 21... Qd7 {[%clk 0:03:25.8]} 22. b5 {[%clk 0:03:52]} 22...
Nd8 {[%clk 0:03:18.2]} 23. Nxe5 {[%clk 0:03:48.9]} 23... Qc8 {[%clk 0:03:11.7]}
24. c6 {[%clk 0:03:46.2]} 24... Bd6 {[%clk 0:03:03.1]} 25. Nf3 {[%clk
0:03:33.2]} 25... Kh8 {[%clk 0:02:58.6]} 26. Nxd4 {[%clk 0:03:29.2]} 26... Bxh3
{[%clk 0:02:56]} 27. Qd3 {[%clk 0:02:49.1]} 27... Qg4 {[%clk 0:02:45.6]} 28.
gxh3 {[%clk 0:02:37.9]} 28... Qxh3 {[%clk 0:02:44.3]} 29. Qf1 {[%clk 0:02:36.9]}
29... Qh4 {[%clk 0:02:39.9]} 30. Nf3 {[%clk 0:02:29.4]} 30... Qg4 {[%clk
0:02:36]} 31. Be2 {[%clk 0:02:27.7]} 31... Qe6 {[%clk 0:02:27.6]} 32. Re1 {[%clk
0:02:18.5]} 32... Ne4 {[%clk 0:02:23.1]} 33. Nxe4 {[%clk 0:02:14]} 33... Qxe4
{[%clk 0:02:20]} 34. Qg2 {[%clk 0:02:10.4]} 34... Rf5 {[%clk 0:02:09.1]} 35. Bc3
{[%clk 0:02:08.4]} 35... Ne6 {[%clk 0:02:00.5]} 36. Bd3 {[%clk 0:02:00.1]} 36...
Qxd3 {[%clk 0:01:58.9]} 37. Rxe6 {[%clk 0:01:57.1]} 37... Bf8 {[%clk 0:01:57.6]}
38. Rxh6+ {[%clk 0:01:46.3]} 38... Kg8 {[%clk 0:01:55.5]} 39. Rg6 {[%clk
0:01:45.3]} 39... Qxf3 {[%clk 0:01:45.2]} 40. Rxg7+ {[%clk 0:01:43.1]} 40... Kh8
{[%clk 0:01:43.7]} 41. Rg8+ {[%clk 0:01:41.3]} 41... Kh7 {[%clk 0:01:42.7]} 42.
Rh8# {[%clk 0:01:40.3]} 1-0

[Event "Live Chess"]
[Site "Chess.com"]
[Date "2023.05.20"]
[Round "-"]
[White "AlanPaling"]
[Black "VovaOvchar1990"]
[Result "0-1"]
[WhiteElo "1194"]
[BlackElo "1217"]
[TimeControl "300"]
[EndTime "9:11:56 PDT"]
[Termination "VovaOvchar1990 won by checkmate"]

1. c4 {[%clk 0:04:58.8]} 1... e5 {[%clk 0:04:57.8]} 2. Nc3 {[%clk 0:04:57.5]}
2... Bc5 {[%clk 0:04:55.9]} 3. g3 {[%clk 0:04:55.9]} 3... Nf6 {[%clk 0:04:52.2]}
4. Bg2 {[%clk 0:04:53.5]} 4... a6 {[%clk 0:04:40.3]} 5. e3 {[%clk 0:04:51.5]}
5... d6 {[%clk 0:04:38.2]} 6. Nge2 {[%clk 0:04:50.3]} 6... O-O {[%clk
0:04:36.2]} 7. O-O {[%clk 0:04:48.9]} 7... h6 {[%clk 0:04:34.9]} 8. h3 {[%clk
0:04:46.8]} 8... Nc6 {[%clk 0:04:33.1]} 9. b3 {[%clk 0:04:44]} 9... Ne7 {[%clk
0:04:30.7]} 10. d4 {[%clk 0:04:37.4]} 10... exd4 {[%clk 0:04:29.1]} 11. exd4
{[%clk 0:04:35.3]} 11... Ba7 {[%clk 0:04:27.4]} 12. Be3 {[%clk 0:04:30.1]} 12...
Ng6 {[%clk 0:04:25.6]} 13. Qd2 {[%clk 0:04:24.6]} 13... c6 {[%clk 0:04:20.8]}
14. Rfe1 {[%clk 0:04:19.1]} 14... d5 {[%clk 0:04:13.2]} 15. c5 {[%clk
0:04:17.2]} 15... Bb8 {[%clk 0:04:10.2]} 16. b4 {[%clk 0:04:11.1]} 16... Bc7
{[%clk 0:04:02.5]} 17. a4 {[%clk 0:03:58.6]} 17... Re8 {[%clk 0:04:00]} 18. Qb2
{[%clk 0:03:52.8]} 18... Ne4 {[%clk 0:03:54.8]} 19. b5 {[%clk 0:03:47.2]} 19...
axb5 {[%clk 0:03:43.5]} 20. axb5 {[%clk 0:03:43.8]} 20... Rxa1 {[%clk
0:03:41.5]} 21. Rxa1 {[%clk 0:03:39.5]} 21... Nxc3 {[%clk 0:03:33]} 22. Nxc3
{[%clk 0:03:37.1]} 22... Bxg3 {[%clk 0:03:23.2]} 23. bxc6 {[%clk 0:03:30.8]}
23... bxc6 {[%clk 0:03:14.2]} 24. Qb6 {[%clk 0:03:24.8]} 24... Qd7 {[%clk
0:02:47.8]} 25. Ra7 {[%clk 0:03:18.4]} 25... Qe6 {[%clk 0:02:38.7]} 26. Na4
{[%clk 0:02:57.6]} 26... Kh7 {[%clk 0:02:25.7]} 27. Rc7 {[%clk 0:02:43.4]} 27...
Bd7 {[%clk 0:02:20.2]} 28. Qa7 {[%clk 0:02:36.1]} 28... Re7 {[%clk 0:01:57.8]}
29. Nb6 {[%clk 0:02:32.8]} 29... Qf5 {[%clk 0:01:42.3]} 30. Rxd7 {[%clk
0:02:20.4]} 30... Rxe3 {[%clk 0:01:38.8]} 31. fxg3 {[%clk 0:02:07.1]} 31... Re1+
{[%clk 0:01:22.7]} 32. Kh2 {[%clk 0:02:04.1]} 32... Qf2 {[%clk 0:01:18.6]} 33.
Rxf7 {[%clk 0:02:00.3]} 33... Qg1# {[%clk 0:01:16.5]} 0-1

[Event "Live Chess"]
[Site "Chess.com"]
[Date "2023.05.20"]
[Round "-"]
[White "KirbyHasARevenge"]
[Black "defenderalist"]
[Result "1-0"]
[WhiteElo "1745"]
[BlackElo "1593"]
[TimeControl "300"]
[EndTime "9:11:57 PDT"]
[Termination "KirbyHasARevenge won by checkmate"]

1. e4 {[%clk 0:04:59]} 1... e6 {[%clk 0:04:48.7]} 2. c4 {[%clk 0:04:57.5]} 2...
Bc5 {[%clk 0:04:45.9]} 3. d4 {[%clk 0:04:55]} 3... Bb4+ {[%clk 0:04:44.1]} 4.
Nc3 {[%clk 0:04:53.6]} 4... Bxc3+ {[%clk 0:04:42.9]} 5. bxc3 {[%clk 0:04:53.5]}
5... d5 {[%clk 0:04:41.1]} 6. cxd5 {[%clk 0:04:48.5]} 6... exd5 {[%clk
0:04:39.5]} 7. Bd3 {[%clk 0:04:47.7]} 7... dxe4 {[%clk 0:04:37]} 8. Bxe4 {[%clk
0:04:44]} 8... Nf6 {[%clk 0:04:36.3]} 9. Qe2 {[%clk 0:04:41.5]} 9... O-O {[%clk
0:04:35.1]} 10. Bg5 {[%clk 0:04:37.3]} 10... Nbd7 {[%clk 0:04:31.8]} 11. Nf3
{[%clk 0:04:31.4]} 11... Re8 {[%clk 0:04:30.2]} 12. O-O {[%clk 0:04:25]} 12...
Rxe4 {[%clk 0:04:25.9]} 13. Qxe4 {[%clk 0:04:20]} 13... Nxe4 {[%clk 0:04:13.8]}
14. Bxd8 {[%clk 0:04:17.3]} 14... f6 {[%clk 0:04:09]} 15. Bxc7 {[%clk
0:04:09.5]} 15... b6 {[%clk 0:04:05.5]} 16. Rac1 {[%clk 0:03:43.1]} 16... Ba6
{[%clk 0:04:01.6]} 17. Rfe1 {[%clk 0:03:39.5]} 17... Ng5 {[%clk 0:03:47.6]} 18.
Nxg5 {[%clk 0:03:33.9]} 18... fxg5 {[%clk 0:03:47.5]} 19. Re7 {[%clk 0:03:30.7]}
19... Nf6 {[%clk 0:03:45.4]} 20. Rce1 {[%clk 0:03:28.6]} 20... Nd5 {[%clk
0:03:42.9]} 21. Rd7 {[%clk 0:03:25.8]} 21... Nxc3 {[%clk 0:03:31.5]} 22. Ree7
{[%clk 0:03:23.5]} 22... Bd3 {[%clk 0:03:26.6]} 23. Rxg7+ {[%clk 0:03:21.4]}
23... Kh8 {[%clk 0:03:25.1]} 24. Be5 {[%clk 0:03:20.6]} 24... Ne2+ {[%clk
0:03:17]} 25. Kh1 {[%clk 0:03:17.8]} 25... Rc8 {[%clk 0:03:15.5]} 26. Rxh7+
{[%clk 0:03:16]} 26... Kg8 {[%clk 0:03:14.1]} 27. Rdg7+ {[%clk 0:03:15.5]} 27...
Kf8 {[%clk 0:03:13.3]} 28. Rh8# {[%clk 0:03:15.4]} 1-0

[Event "Live Chess"]
[Site "Chess.com"]
[Date "2023.05.20"]
[Round "-"]
[White "BearFromUkraine"]
[Black "DianaSpencer1"]
[Result "1-0"]
[WhiteElo "1190"]
[BlackElo "647"]
[TimeControl "300"]
[EndTime "9:12:02 PDT"]
[Termination "BearFromUkraine won by checkmate"]

1. e4 {[%clk 0:04:55.7]} 1... e5 {[%clk 0:04:57.6]} 2. Nf3 {[%clk 0:04:53.5]}
2... Nc6 {[%clk 0:04:50.5]} 3. Bc4 {[%clk 0:04:51.6]} 3... Nf6 {[%clk
0:04:44.8]} 4. d3 {[%clk 0:04:49.4]} 4... Bb4+ {[%clk 0:04:39.1]} 5. Bd2 {[%clk
0:04:47.2]} 5... d5 {[%clk 0:04:32]} 6. exd5 {[%clk 0:04:40.5]} 6... Nxd5 {[%clk
0:04:28.4]} 7. Bxd5 {[%clk 0:04:38]} 7... Qxd5 {[%clk 0:04:23.5]} 8. Bxb4 {[%clk
0:04:34.8]} 8... Nxb4 {[%clk 0:04:21]} 9. O-O {[%clk 0:04:32.9]} 9... Bg4 {[%clk
0:04:08.1]} 10. Re1 {[%clk 0:04:23]} 10... O-O {[%clk 0:04:01.2]} 11. Nc3 {[%clk
0:04:20.3]} 11... Nxa2 {[%clk 0:03:36.2]} 12. Nxd5 {[%clk 0:04:13.3]} 12... Be6
{[%clk 0:03:20.9]} 13. Rxa2 {[%clk 0:04:04.5]} 13... Bxd5 {[%clk 0:03:16.3]} 14.
Ra1 {[%clk 0:04:03.5]} 14... b5 {[%clk 0:03:06.5]} 15. Nxe5 {[%clk 0:03:57.8]}
15... Rfe8 {[%clk 0:02:45.6]} 16. Qd2 {[%clk 0:03:36.7]} 16... a5 {[%clk
0:02:27.6]} 17. Qf4 {[%clk 0:03:33.1]} 17... Rxe5 {[%clk 0:02:13.4]} 18. Qxe5
{[%clk 0:03:25]} 18... Ra6 {[%clk 0:01:50.8]} 19. Qe8# {[%clk 0:03:21.8]} 1-0

[Event "Live Chess"]
[Site "Chess.com"]
[Date "2023.05.20"]
[Round "-"]
[White "Prijmak"]
[Black "boilerboy1"]
[Result "0-1"]
[WhiteElo "1018"]
[BlackElo "1054"]
[TimeControl "300"]
[EndTime "9:12:03 PDT"]
[Termination "boilerboy1 won by checkmate"]

1. e4 {[%clk 0:04:57.4]} 1... e5 {[%clk 0:04:58]} 2. f4 {[%clk 0:04:53.6]} 2...
d6 {[%clk 0:04:55.8]} 3. Nf3 {[%clk 0:04:52.1]} 3... Bg4 {[%clk 0:04:50]} 4. Bc4
{[%clk 0:04:48.9]} 4... exf4 {[%clk 0:04:34.1]} 5. d4 {[%clk 0:04:44.3]} 5...
Bh5 {[%clk 0:04:31.4]} 6. Bxf4 {[%clk 0:04:39.5]} 6... Nf6 {[%clk 0:04:29.2]} 7.
Nc3 {[%clk 0:04:37.3]} 7... Be7 {[%clk 0:04:25.9]} 8. O-O {[%clk 0:04:35.4]}
8... O-O {[%clk 0:04:23.6]} 9. Nd5 {[%clk 0:04:26.9]} 9... Nxd5 {[%clk
0:04:21.3]} 10. Bxd5 {[%clk 0:04:24.3]} 10... c6 {[%clk 0:04:18.7]} 11. Bb3
{[%clk 0:04:21.2]} 11... Nd7 {[%clk 0:04:14]} 12. Qd3 {[%clk 0:04:18.8]} 12...
Nf6 {[%clk 0:04:09.9]} 13. Rae1 {[%clk 0:04:10.4]} 13... Bg6 {[%clk 0:04:04.8]}
14. Bg5 {[%clk 0:03:59.5]} 14... Qa5 {[%clk 0:03:52.6]} 15. Bxf6 {[%clk
0:03:50]} 15... Bxf6 {[%clk 0:03:48.9]} 16. Rf2 {[%clk 0:03:29.2]} 16... Rad8
{[%clk 0:03:44.1]} 17. Rfe2 {[%clk 0:03:20.4]} 17... d5 {[%clk 0:03:18.5]} 18.
e5 {[%clk 0:03:18.4]} 18... Bxd3 {[%clk 0:03:15.8]} 19. cxd3 {[%clk 0:03:16.5]}
19... Be7 {[%clk 0:03:07.6]} 20. h3 {[%clk 0:03:15.2]} 20... c5 {[%clk
0:03:01.8]} 21. Rf1 {[%clk 0:03:08.3]} 21... cxd4 {[%clk 0:03:00.7]} 22. Nxd4
{[%clk 0:03:06.9]} 22... Bc5 {[%clk 0:02:58.7]} 23. Kh2 {[%clk 0:02:57.7]} 23...
Bxd4 {[%clk 0:02:57.7]} 24. Rf4 {[%clk 0:02:47.9]} 24... Qb4 {[%clk 0:02:48.2]}
25. Rf5 {[%clk 0:02:42]} 25... Rde8 {[%clk 0:02:33.7]} 26. g4 {[%clk 0:02:35.8]}
26... a5 {[%clk 0:02:23.5]} 27. Bd1 {[%clk 0:02:27.5]} 27... Qc5 {[%clk
0:02:11.2]} 28. Rc2 {[%clk 0:02:21.9]} 28... Bxe5+ {[%clk 0:02:06.2]} 29. Kg2
{[%clk 0:02:09.3]} 29... Qd4 {[%clk 0:02:02.7]} 30. Be2 {[%clk 0:02:01.6]} 30...
b5 {[%clk 0:01:55.7]} 31. a3 {[%clk 0:01:57.5]} 31... b4 {[%clk 0:01:53.6]} 32.
axb4 {[%clk 0:01:54.9]} 32... Qxb4 {[%clk 0:01:51.1]} 33. Bf3 {[%clk 0:01:52.1]}
33... Qe1 {[%clk 0:01:48.7]} 34. Rf2 {[%clk 0:01:43.9]} 34... Bd4 {[%clk
0:01:44.2]} 35. Rxd5 {[%clk 0:01:37.1]} 35... Bxf2 {[%clk 0:01:39.8]} 36. d4
{[%clk 0:01:29.8]} 36... Qg1# {[%clk 0:01:37.7]} 0-1

[Event "Live Chess"]
[Site "Chess.com"]
[Date "2023.05.20"]
[Round "-"]
[White "MizYanKo"]
[Black "SavagePawn7"]
[Result "0-1"]
[WhiteElo "407"]
[BlackElo "792"]
[TimeControl "300"]
[EndTime "9:12:04 PDT"]
[Termination "SavagePawn7 won by checkmate"]

1. d4 {[%clk 0:04:53.5]} 1... e5 {[%clk 0:04:57.8]} 2. dxe5 {[%clk 0:04:50.8]}
2... d6 {[%clk 0:04:56.3]} 3. e4 {[%clk 0:04:44.6]} 3... Nc6 {[%clk 0:04:53.3]}
4. Bc4 {[%clk 0:04:43.6]} 4... Nxe5 {[%clk 0:04:47.5]} 5. Qd5 {[%clk 0:04:42.5]}
5... Be6 {[%clk 0:04:40.4]} 6. Qd4 {[%clk 0:04:25.4]} 6... Bxc4 {[%clk
0:04:36.1]} 7. b3 {[%clk 0:04:24.5]} 7... Ba6 {[%clk 0:04:28.6]} 8. Bf4 {[%clk
0:04:12.7]} 8... Qf6 {[%clk 0:04:24.9]} 9. Ne2 {[%clk 0:04:09.6]} 9... Bxe2
{[%clk 0:04:08.9]} 10. Nc3 {[%clk 0:04:02.3]} 10... Nf3+ {[%clk 0:04:00.4]} 11.
Kxe2 {[%clk 0:03:56.9]} 11... Qxd4 {[%clk 0:03:55.2]} 12. Kxf3 {[%clk
0:03:53.2]} 12... Qxc3+ {[%clk 0:03:54]} 13. Kg4 {[%clk 0:03:51.2]} 13... Nf6+
{[%clk 0:03:51]} 14. Kh4 {[%clk 0:03:45.4]} 14... Be7 {[%clk 0:03:46]} 15. Rac1
{[%clk 0:03:41.8]} 15... Nxe4+ {[%clk 0:03:41.4]} 16. Kg4 {[%clk 0:03:35.9]}
16... O-O {[%clk 0:03:33]} 17. Rhe1 {[%clk 0:03:34.7]} 17... Nxf2+ {[%clk
0:03:24.4]} 18. Kf5 {[%clk 0:03:26.3]} 18... Qf6# {[%clk 0:03:17.5]} 0-1

[Event "Live Chess"]
[Site "Chess.com"]
[Date "2023.05.20"]
[Round "-"]
[White "Trendle"]
[Black "Chesscoach_Golichenko"]
[Result "1-0"]
[WhiteElo "2680"]
[BlackElo "2644"]
[TimeControl "300"]
[EndTime "9:12:05 PDT"]
[Termination "Trendle won by resignation"]

1. e4 {[%clk 0:04:57.7]} 1... Nf6 {[%clk 0:04:53.5]} 2. e5 {[%clk 0:04:55.8]}
2... Nd5 {[%clk 0:04:51.2]} 3. d4 {[%clk 0:04:55.7]} 3... d6 {[%clk 0:04:49.7]}
4. Nf3 {[%clk 0:04:55.5]} 4... g6 {[%clk 0:04:47.9]} 5. Bc4 {[%clk 0:04:50.5]}
5... c6 {[%clk 0:04:46]} 6. O-O {[%clk 0:04:48.1]} 6... Bg7 {[%clk 0:04:43.4]}
7. Re1 {[%clk 0:04:40.4]} 7... O-O {[%clk 0:04:23.6]} 8. exd6 {[%clk 0:04:38.3]}
8... Qxd6 {[%clk 0:04:19.5]} 9. c3 {[%clk 0:04:36.8]} 9... b5 {[%clk 0:04:13]}
10. Bb3 {[%clk 0:04:34.4]} 10... a5 {[%clk 0:04:07.8]} 11. Nbd2 {[%clk
0:04:32.7]} 11... Bf5 {[%clk 0:04:05.2]} 12. a4 {[%clk 0:04:28]} 12... Nb6
{[%clk 0:03:48.5]} 13. axb5 {[%clk 0:04:21.2]} 13... cxb5 {[%clk 0:03:32.1]} 14.
Ne4 {[%clk 0:04:18]} 14... Bxe4 {[%clk 0:03:23]} 15. Rxe4 {[%clk 0:04:16.2]}
15... a4 {[%clk 0:03:21.3]} 16. Bf4 {[%clk 0:04:08.5]} 16... Qc6 {[%clk
0:02:50.4]} 17. d5 {[%clk 0:04:03.8]} 17... Qb7 {[%clk 0:02:40.2]} 18. Ba2
{[%clk 0:04:00.9]} 18... e6 {[%clk 0:02:17.5]} 19. Nd4 {[%clk 0:02:37.9]} 19...
Nxd5 {[%clk 0:02:10.9]} 20. Nxe6 {[%clk 0:02:29.9]} 20... fxe6 {[%clk
0:01:53.2]} 21. Rxe6 {[%clk 0:02:27.9]} 21... Rd8 {[%clk 0:01:20.9]} 22. Rd6
{[%clk 0:02:10.5]} 22... Rxd6 {[%clk 0:01:10.3]} 23. Bxd6 {[%clk 0:02:10.4]}
23... Kh8 {[%clk 0:01:07.1]} 24. Bxd5 {[%clk 0:02:02.5]} 1-0

[Event "Live Chess"]
[Site "Chess.com"]
[Date "2023.05.20"]
[Round "-"]
[White "gmnorfolk"]
[Black "Kr1xot4_XGOD"]
[Result "0-1"]
[WhiteElo "2066"]
[BlackElo "2127"]
[TimeControl "300"]
[EndTime "9:12:05 PDT"]
[Termination "Kr1xot4_XGOD won by resignation"]

1. d4 {[%clk 0:04:58.4]} 1... d5 {[%clk 0:04:55.4]} 2. c4 {[%clk 0:04:56.8]}
2... e6 {[%clk 0:04:51.2]} 3. Nf3 {[%clk 0:04:55.8]} 3... dxc4 {[%clk
0:04:46.6]} 4. g3 {[%clk 0:04:52]} 4... b5 {[%clk 0:04:41.7]} 5. Bg2 {[%clk
0:04:50.3]} 5... a6 {[%clk 0:04:38.3]} 6. Ne5 {[%clk 0:04:44.3]} 6... c6 {[%clk
0:04:34.9]} 7. a4 {[%clk 0:04:41]} 7... Bb7 {[%clk 0:04:30.2]} 8. O-O {[%clk
0:04:31.8]} 8... Ne7 {[%clk 0:04:26.7]} 9. b3 {[%clk 0:04:28.1]} 9... cxb3
{[%clk 0:04:22]} 10. Qxb3 {[%clk 0:04:26.3]} 10... Nd5 {[%clk 0:04:17]} 11. e4
{[%clk 0:04:19.6]} 11... Nb6 {[%clk 0:04:13.4]} 12. a5 {[%clk 0:04:12.2]} 12...
N6d7 {[%clk 0:04:08.6]} 13. Bb2 {[%clk 0:04:03.3]} 13... Nxe5 {[%clk 0:04:04.1]}
14. dxe5 {[%clk 0:04:01.6]} 14... c5 {[%clk 0:04:03.5]} 15. Rd1 {[%clk
0:03:57.3]} 15... Nd7 {[%clk 0:03:51.6]} 16. f4 {[%clk 0:03:53.9]} 16... c4
{[%clk 0:03:35.9]} 17. Qe3 {[%clk 0:03:52.6]} 17... Rc8 {[%clk 0:03:32.3]} 18.
f5 {[%clk 0:03:47.4]} 18... Bc5 {[%clk 0:03:22.1]} 19. Bd4 {[%clk 0:03:45.6]}
19... Nxe5 {[%clk 0:03:18.5]} 20. Nc3 {[%clk 0:03:39.1]} 20... Bxd4 {[%clk
0:03:14.3]} 21. Rxd4 {[%clk 0:03:36]} 21... Qc7 {[%clk 0:03:08.3]} 22. Rf1
{[%clk 0:03:26.6]} 22... O-O {[%clk 0:03:03.5]} 23. f6 {[%clk 0:03:16.4]} 23...
gxf6 {[%clk 0:03:00.5]} 24. Rxf6 {[%clk 0:03:14.4]} 24... b4 {[%clk 0:02:53]}
25. Ne2 {[%clk 0:03:08.9]} 25... c3 {[%clk 0:02:46.6]} 26. Qh6 {[%clk
0:02:57.5]} 26... b3 {[%clk 0:02:40.7]} 27. Nf4 {[%clk 0:02:52.7]} 27... Ng4
{[%clk 0:02:30]} 28. Qg5+ {[%clk 0:02:47.9]} 28... Kh8 {[%clk 0:02:27]} 29. Qxg4
{[%clk 0:02:41.7]} 29... c2 {[%clk 0:02:23.1]} 30. Rh6 {[%clk 0:02:27.4]} 30...
c1=Q+ {[%clk 0:02:19.3]} 31. Bf1 {[%clk 0:02:26.4]} 31... Qe3+ {[%clk
0:02:14.2]} 32. Kg2 {[%clk 0:02:12.4]} 32... Qxd4 {[%clk 0:02:00.7]} 0-1